{"text_format":"3","workbook":"xlsx","n_sheets":6,"sheets":["TERMEN","CREDITE","BUGET","CHELTUIELI LUNARE NETE","CHELTUIELI SEMESTRIALE","CĂRȚI"],"not_rendered":{"defined_names":21},"read":"whole","date_system":"1900"}

{"sheet":"TERMEN","index":0,"n_rows":29,"n_cols":9,"rows_kept":29,"merged":[[2,3,2,4]]}
[null,"ORARUL CURSULUI MEU"]
[null,"SEMESTRUL I"]
[null,null,"ORA DE ÎNCEPUT","INTERVAL DE TIMP",null,"AN"]
[null,null,"09:00:00",60,"(În minute)"]
[null,"ORA ","L","MA","MIE","JO","VIN","SÂ","D"]
[null,{"$f":"OraÎnceput+TIME(0,(ROW(A1)-1)*IntervalTimp,0)","v":"09:00:00"},"Mic dejun","Mic dejun","Mic dejun","Mic dejun","Mic dejun"]
[null,"10:00:00","Afaceri: Prelegere Corp B, Sala 256"]
[null,"11:00:00",{"$nulls":3},"Fizică: Laborator \nCorp J, Sala 309"]
[null,"12:00:00"]
[null,"13:00:00"]
[null,"14:00:00"]
[null,"15:00:00"]
[null,"16:00:00"]
[null,"17:00:00"]
[null,"18:00:00"]
[null,"19:00:00"]
[null,"20:00:00"]
[null,"21:00:00"]
[null,"22:00:00"]
[null,"23:00:00"]
[null,1]
[null,1.0416666666666665]
[null,1.0833333333333335]
[null,1.125]
[null,1.1666666666666665]
[null,1.2083333333333335]
[null,1.25]
[null,1.2916666666666665]
[null,1.3333333333333335]

{"sheet":"CREDITE","index":1,"n_rows":17,"n_cols":8,"rows_kept":17}
[null,"FACULTATE"]
[null,"PLANIFICATOR DE CREDITE"]
[null,"Studii absolvite",{"$f":"An","v":"AN"}]
[null,"PROGRES GENERAL",null,"PROGRES GENERAL"]
[null,{"$f":"AVERAGE(Cursuri[NOTA])","v":3.5},{"$f":"IFERROR(TEXT(AVERAGEIF(Cursuri[TERMINATE],\"Da\",Cursuri[NOTA]),\"0,00\"),\"0,00\")&\" GPA curent\"","v":"3,50 GPA curent"},{"$f":"COUNTIF(Cursuri[TERMINATE],\"Da\")/COUNTA(Cursuri[TITLU CURS])","v":0.6666666666666666},{"$f":"TEXT(COUNTIF(Cursuri[TERMINATE],\"Da\")/COUNTA(Cursuri[TITLU CURS]),\"0%\")&\" finalizat\"","v":"67% finalizat"}]
[null,"Notă: Următoarea situație a creditelor este completată automat cu intrările dvs. din tabelul Cursuri facultate de mai jos"]
[null,"CERINȚĂ","TOTAL CREDITE","OBȚINUTE","NECESARE"]
[null,"Specializare principală",{"$f":"IF(SUMIF(Cursuri[CERINȚĂ],CREDITE!$B8,Cursuri[CREDITE])=0,\"0\",SUMIF(Cursuri[CERINȚĂ],CREDITE!$B8,Cursuri[CREDITE]))","v":4},{"$f":"SUMIFS(Cursuri[CREDITE],Cursuri[CERINȚĂ],CREDITE!$B8,Cursuri[TERMINATE],\"Da\")","v":4},{"$f":"SUMIF(Cursuri[CERINȚĂ],CREDITE!$B8,Cursuri[CREDITE])-SUMIFS(Cursuri[CREDITE],Cursuri[CERINȚĂ],CREDITE!$B8,Cursuri[TERMINATE],\"Da\")","v":0}]
[null,"Specializare secundară",{"$f":"IF(SUMIF(Cursuri[CERINȚĂ],CREDITE!$B9,Cursuri[CREDITE])=0,\"0\",SUMIF(Cursuri[CERINȚĂ],CREDITE!$B9,Cursuri[CREDITE]))","v":3},{"$f":"SUMIFS(Cursuri[CREDITE],Cursuri[CERINȚĂ],CREDITE!$B9,Cursuri[TERMINATE],\"Da\")","v":0},{"$f":"SUMIF(Cursuri[CERINȚĂ],CREDITE!$B9,Cursuri[CREDITE])-SUMIFS(Cursuri[CREDITE],Cursuri[CERINȚĂ],CREDITE!$B9,Cursuri[TERMINATE],\"Da\")","v":3}]
[null,"Curs opțional",{"$f":"IF(SUMIF(Cursuri[CERINȚĂ],CREDITE!$B10,Cursuri[CREDITE])=0,\"0\",SUMIF(Cursuri[CERINȚĂ],CREDITE!$B10,Cursuri[CREDITE]))","v":2},{"$f":"SUMIFS(Cursuri[CREDITE],Cursuri[CERINȚĂ],CREDITE!$B10,Cursuri[TERMINATE],\"Da\")","v":2},{"$f":"SUMIF(Cursuri[CERINȚĂ],CREDITE!$B10,Cursuri[CREDITE])-SUMIFS(Cursuri[CREDITE],Cursuri[CERINȚĂ],CREDITE!$B10,Cursuri[TERMINATE],\"Da\")","v":0}]
[null,"Studiu general",{"$f":"IF(SUMIF(Cursuri[CERINȚĂ],CREDITE!$B11,Cursuri[CREDITE])=0,\"0\",SUMIF(Cursuri[CERINȚĂ],CREDITE!$B11,Cursuri[CREDITE]))","v":"0"},{"$f":"SUMIFS(Cursuri[CREDITE],Cursuri[CERINȚĂ],CREDITE!$B11,Cursuri[TERMINATE],\"Da\")","v":0},{"$f":"SUMIF(Cursuri[CERINȚĂ],CREDITE!$B11,Cursuri[CREDITE])-SUMIFS(Cursuri[CREDITE],Cursuri[CERINȚĂ],CREDITE!$B11,Cursuri[TERMINATE],\"Da\")","v":0}]
[null,"Total",{"$f":"SUBTOTAL(109,CREDITE!$C$8:$C$11)","v":9},{"$f":"SUBTOTAL(109,CREDITE!$D$8:$D$11)","v":6},{"$f":"SUBTOTAL(109,CREDITE!$E$8:$E$11)","v":3}]
[null,"Cursuri"]
[null,"TITLU CURS","CURS NR.","CERINȚĂ","CREDITE","TERMINATE","NOTA","SEMESTRU"]
[null,"Curs 1","Număr","Specializare principală",4,"Da",{"v":4,"d":"4.0"},"Semestrul 1"]
[null,"Curs 2","Număr","Specializare secundară",3,"Nu",null,"Semestrul 1"]
[null,"Curs 3","Număr","Curs opțional",2,"Da",{"v":3,"d":"3.0"},"Semestrul 1"]

{"sheet":"BUGET","index":2,"n_rows":15,"n_cols":4,"rows_kept":15}
[null,{"$f":"Facultatea","v":"FACULTATE"}]
[null,"MONITOR BUGET"]
[null,"Bugetul meu",{"$f":"An","v":"AN"}]
[null,"PROCENT DIN VENIT CHELTUIT"]
[null,{"$f":"CHELTUIELI_LUNARE_NETE/VENIT_LUNAR_NET","v":{"v":0.7454545454545455,"d":"75%"}}]
[null,{"$f":"B5","v":0.7454545454545455}]
[null,"VENIT LUNAR NET","CHELTUIELI LUNARE NETE","SOLD"]
[null,{"$f":"C10","v":{"v":2750,"d":"2,750 lei"}},{"$f":"'CHELTUIELI LUNARE NETE'!C4+'CHELTUIELI SEMESTRIALE'!D4","v":{"v":2050,"d":"2,050 lei"}},{"$f":"VENIT_LUNAR_NET-CHELTUIELI_LUNARE_NETE","v":{"v":700,"d":"700 lei"}}]
[null,"Luni în semestru",4]
[null,"VENIT LUNAR",{"$f":"SUM(VenitLunar[SUMĂ])","v":{"v":2750,"d":"2,750 lei"}}]
[null,"ELEMENT","SUMĂ"]
[null,"Venit fix",{"v":1500,"d":"1,500 lei"}]
[null,"Ajutor financiar",{"v":500,"d":"500 lei"}]
[null,"Împrumuturi",{"v":500,"d":"500 lei"}]
[null,"Alte venituri",{"v":250,"d":"250 lei"}]

{"sheet":"CHELTUIELI LUNARE NETE","index":3,"n_rows":15,"n_cols":3,"rows_kept":15}
[null,{"$f":"Facultatea","v":"FACULTATE"}]
[null,"MONITOR BUGET"]
[null,"Cheltuieli lunare",{"$f":"An","v":"AN"}]
[null,"CHELTUIELI LUNARE",{"$f":"SUM(CheltuieliLunare[SUMĂ])","v":{"v":1675,"d":"1,675 lei"}}]
[null,"ELEMENT","SUMĂ"]
[null,"Chirie",{"v":300,"d":"300 lei"}]
[null,"Utilități",{"v":50,"d":"50 lei"}]
[null,"Telefon mobil",{"v":75,"d":"75 lei"}]
[null,"Alimente",{"v":250,"d":"250 lei"}]
[null,"Cheltuielile auto",{"v":50,"d":"50 lei"}]
[null,"Credite pentru studenți",{"v":500,"d":"500 lei"}]
[null,"Carduri de credit",{"v":275,"d":"275 lei"}]
[null,"Asigurare",{"v":125,"d":"125 lei"}]
[null,"Distracție",{"v":50,"d":"50 lei"}]
[null,"Diverse",{"v":0,"d":"0 lei"}]

{"sheet":"CHELTUIELI SEMESTRIALE","index":4,"n_rows":11,"n_cols":4,"rows_kept":11}
[null,{"$f":"Facultatea","v":"FACULTATE"}]
[null,"MONITOR BUGET"]
[null,"Cheltuieli semestriale",{"$f":"An","v":"AN"}]
[null,"CHELTUIELI SEMESTRIALE (Total/lună)",{"$f":"SUM(CheltuieliSemestriale[SUMĂ])","v":{"v":1500,"d":"1,500 lei"}},{"$f":"SUM(CheltuieliSemestriale[PE LUNĂ])","v":{"v":375,"d":"375 lei"}}]
[null,"ELEMENT","SUMĂ","PE LUNĂ"]
[null,"Taxe școlare",{"v":750,"d":"750 lei"},{"$f":"CheltuieliSemestriale[[#This Row],[SUMĂ]]/Luni_în_semestru","v":{"v":187.5,"d":"188 lei"}}]
[null,"Taxe de laborator",{"v":250,"d":"250 lei"},{"$f":"CheltuieliSemestriale[[#This Row],[SUMĂ]]/Luni_în_semestru","v":{"v":62.5,"d":"63 lei"}}]
[null,"Cărți",{"v":500,"d":"500 lei"},{"$f":"CheltuieliSemestriale[[#This Row],[SUMĂ]]/Luni_în_semestru","v":{"v":125,"d":"125 lei"}}]
[null,"Depozite",{"v":0,"d":"0 lei"},{"$f":"CheltuieliSemestriale[[#This Row],[SUMĂ]]/Luni_în_semestru","v":{"v":0,"d":"0 lei"}}]
[null,"Transport",{"v":0,"d":"0 lei"},{"$f":"CheltuieliSemestriale[[#This Row],[SUMĂ]]/Luni_în_semestru","v":{"v":0,"d":"0 lei"}}]
[null,"Alte taxe",{"v":0,"d":"0 lei"},{"$f":"CheltuieliSemestriale[[#This Row],[SUMĂ]]/Luni_în_semestru","v":{"v":0,"d":"0 lei"}}]

{"sheet":"CĂRȚI","index":5,"n_rows":7,"n_cols":7,"rows_kept":7}
[null,{"$f":"Facultatea","v":"FACULTATE"}]
[null,"MONITOR CĂRȚI"]
[null,"Listă de cărți"]
[null,"TITLU","AUTOR","CURS","UNDE SE GĂSEȘTE?","ISBN","NOTE"]
[null,"Titlul cărții","Autor","Curs","Locație","Număr"]
[null,"Titlul cărții","Autor","Curs","Locație","Număr"]
[null,"Titlul cărții","Autor","Curs","Locație","Număr"]